bitfinex-derivatives/quotes_SOLF0:USTF0_20250127
["timestamp","ask_amount","ask_price","bid_price","bid_amount"]
[1737984404178,25.5365544,233.42,233.19,25.5365544]
[1737984404378,25.5365544,233.37,233.18,2.6078]
[1737984404786,25.5365544,233.41,233.25,0.03148576]
[1737984405084,25.5365544,233.41,233.23,25.5365544]
[1737984405479,25.5365544,233.45,233.31,0.02792904]
[1737984405682,25.5365544,233.49,233.31,0.02792904]
[1737984405980,25.5365544,233.45,233.32,2.58]
[1737984406178,25.5365544,233.53,233.38,0.02966296]
[1737984406577,4.2835,233.49,233.39,2.58]
[1737984406784,25.5365544,233.57,233.36,25.5365544]
[1737984406984,25.5365544,233.57,233.43,0.02973543]
[1737984407986,25.5365544,233.61,233.43,0.02973543]
[1737984408188,25.5365544,233.65,233.44,25.5365544]
[1737984408489,4.2819,233.58,233.52,0.02726321]
[1737984408687,28.2676544,233.69,233.52,0.02726321]
[1737984408990,25.5365544,233.75,233.53,2.58]
[1737984409185,25.5365544,233.75,233.58,0.02881601]
[1737984409389,4.2815,233.6,233.58,0.02881601]
[1737984409586,25.5365544,233.63,233.49,2.6059]
[1737984409888,4.2816,233.59,233.57,0.03190769]
[1737984410087,25.5365544,233.71,233.57,0.03190769]
[1737984410287,25.5365544,233.71,233.51,25.5365544]
[1737984410288,25.5365544,233.71,233.53,2.58]
[1737984410490,25.5365544,233.71,233.62,0.03179711]
[1737984411087,4.2808,233.64,233.62,0.03179711]
[1737984411990,25.5365544,233.63,233.48,2.58]
[1737984412682,25.5365544,233.67,233.48,2.58]
[1737984412883,25.5365544,233.71,233.5,25.5365544]
[1737984413082,4.2813,233.61,233.5,25.5365544]
[1737984413289,0.03069568,233.63,233.58,0.03227006]
[1737984413490,25.5365544,233.67,233.48,2.58]
[1737984413784,25.5365544,233.59,233.58,0.00090866]
[1737984413986,25.5365544,233.59,233.38,9.1109]
[1737984414187,0.03079505,233.63,233.38,9.1109]
[1737984414188,25.5365544,233.51,233.38,5.2176]
[1737984414393,25.5365544,233.51,233.38,2.58]
[1737984414592,25.5365544,233.51,233.29,4.2871]
[1737984414890,25.5365544,233.51,233.27,25.5365544]
[1737984415087,25.5365544,233.53,233.27,25.5365544]
[1737984415292,0.02981285,233.42,233.38,0.02724203]
[1737984415991,4.31461285,233.42,233.38,0.02724203]
[1737984417289,4.2852,233.4,233.38,0.02724203]
[1737984417893,0.02981285,233.42,233.38,0.02724203]
[1737984418094,0.02981285,233.42,233.39,2.58]
[1737984418294,25.5365544,233.57,233.39,28.1165544]
[1737984418495,25.5365544,233.57,233.39,32.4016544]
[1737984418691,4.2827,233.54,233.39,28.1165544]
[1737984418995,3.7444,233.61,233.39,28.1165544]
[1737984419191,25.5365544,233.54,233.39,2.58]
[1737984419598,0.03124293,233.52,233.48,0.02985338]
[1737984419793,4.2834,233.49,233.48,0.02985338]
[1737984420395,0.03124293,233.52,233.48,0.02985338]
[1737984421593,4.2833,233.5,233.48,0.02985338]
[1737984421791,0.03124293,233.52,233.36,2.58]
[1737984421995,0.03124293,233.52,233.37,4.2856]
[1737984422192,25.5365544,233.51,233.36,2.58]
[1737984422395,25.5365544,233.46,233.3,2.58]
[1737984422591,25.5365544,233.46,233.1,9.36297234]
[1737984422592,25.5365544,233.38,233.24,2.58]
[1737984422991,0.02801523,233.33,233.29,0.03277294]
[1737984423391,25.5365544,233.43,233.24,2.58]
[1737984423596,25.5365544,233.34,233.29,0.03059725]
[1737984423802,25.5365544,233.3,233.19,2.58]
[1737984424000,25.5365544,233.3,233.14,2.58]
[1737984424200,4.2875,233.27,233.14,2.58]
[1737984424401,25.5365544,233.3,233.14,2.58]
[1737984424604,25.5365544,233.26,233.14,2.58]
[1737984424804,25.5365544,233.26,233.09,2.58]
[1737984425007,25.5365544,233.39,233.19,4.2888]
[1737984425206,25.5365544,233.39,233.18,25.56572517]
[1737984425398,25.5365544,233.39,233.19,5.2476]
[1737984425704,25.5365544,233.39,233.23,4.2881]
[1737984426114,25.5365544,233.39,233.24,2.58]
[1737984426303,25.5365544,233.39,233.29,0.02846477]
[1737984426502,0.02699875,233.33,233.29,0.02846477]
[1737984427207,4.31349875,233.33,233.29,0.02846477]
[1737984427513,0.02699875,233.33,233.29,0.02846477]
[1737984429411,0.02699875,233.33,233.29,2.60846477]
[1737984429712,2.7387,233.46,233.29,2.60846477]
[1737984429912,4.2857,233.37,233.29,0.02846477]
[1737984430215,25.5365544,233.4,233.24,2.58]
[1737984430406,4.287,233.3,233.24,2.58]
[1737984430611,25.5365544,233.36,233.24,2.58]
[1737984430813,25.5365544,233.36,233.18,2.58]
[1737984431012,4.2875,233.27,233.25,0.03009175]
[1737984431212,0.0298278,233.29,233.12,2.58]
[1737984431213,25.5365544,233.28,233.12,2.58]
[1737984431705,25.5365544,233.23,233.06,2.58]
[1737984431911,25.5365544,233.19,233.06,2.58]
[1737984432215,25.5365544,233.15,233.01,2.58]
[1737984432410,0.02880044,233.15,233.1,0.03256504]
[1737984432710,25.5365544,233.19,233.1,0.03256504]
[1737984432915,0.02840976,233.15,233.1,0.03256504]
[1737984433313,25.5365544,233.11,232.99,2.58]
[1737984433616,25.5365544,233.11,232.94,2.58]
[1737984433817,4.2913,233.07,232.94,2.58]
[1737984434118,25.5365544,233.11,232.94,2.58]
[1737984434314,4.2918,233.04,232.94,2.58]
[1737984434515,0.0305823,233.05,233.0,0.02728817]
[1737984434817,25.5365544,233.08,232.94,2.58]
[1737984435012,4.2921,233.02,232.94,2.58]
[1737984435316,4.2921,233.02,233.0,0.03296422]
[1737984435517,25.5365544,233.08,233.0,0.03296422]
[1737984435818,0.03000045,233.03,233.0,0.03296422]
[1737984436316,0.03000045,233.03,232.86,2.58]
[1737984436507,25.5365544,232.99,232.86,2.58]
[1737984436706,4.2933,232.96,232.86,2.58]
[1737984436913,25.5365544,232.99,232.86,2.58]
[1737984437313,25.5365544,233.03,232.86,2.58]
[1737984437616,0.02935601,232.95,232.9,0.0283267]
[1737984437813,25.5365544,233.09,232.9,0.0283267]
[1737984438013,25.5365544,233.13,232.91,2.58]
[1737984438210,4.2909,233.09,232.97,4.2928]
[1737984438416,25.5365544,233.13,232.92,25.5365544]
[1737984438918,0.02737875,233.05,233.0,0.02959545]
[1737984439710,0.02737875,233.05,233.01,2.58]
[1737984440116,63.50968861,233.33,233.04,25.5365544]
[1737984440318,63.50968861,233.33,233.11,25.5365544]
[1737984440518,4.2876,233.27,233.11,25.5365544]
[1737984440711,63.50968861,233.33,233.12,2.58]
[1737984440918,64.36684371,233.33,233.12,2.58]
[1737984441231,0.02804025,233.25,233.2,0.02746555]
[1737984441721,4.2885,233.22,233.2,0.02746555]
[1737984442622,0.02804025,233.25,233.2,0.02746555]
[1737984442823,4.14,233.47,233.2,28.14401995]
[1737984443121,4.2851,233.4,233.24,25.5365544]
[1737984443516,4.2851,233.4,233.25,2.58]
[1737984443718,2.6319,233.45,233.28,25.5365544]
[1737984443919,6.5022,233.49,233.28,25.5365544]
[1737984444222,0.03283587,233.39,233.34,0.03153524]
[1737984444622,6.5022,233.49,233.34,2.58]
[1737984444814,2.6319,233.53,233.34,2.58]
[1737984445021,4.12,233.62,233.34,2.58]
[1737984445022,25.5365544,233.58,233.36,25.5365544]
[1737984445221,4.2833,233.5,233.37,4.2856]
[1737984445420,25.5365544,233.58,233.36,29.1532544]
[1737984445813,4.2833,233.5,233.36,29.1532544]
[1737984446021,9.1717,233.61,233.4,25.5365544]
[1737984446221,4.2838,233.47,233.36,29.1532544]
[1737984446423,0.02853259,233.45,233.41,0.03078896]
[1737984446618,9.1717,233.61,233.41,0.03078896]
[1737984446922,9.1717,233.61,233.43,25.5365544]
[1737984447122,9.1717,233.61,233.37,5.3457]
[1737984447623,9.1717,233.61,233.4,25.5365544]
[1737984447821,4.2832,233.51,233.4,25.5365544]
[1737984448025,9.1717,233.61,233.47,0.03280433]
[1737984448321,2.6695,233.61,233.47,0.03280433]
[1737984449023,6.3619,233.74,233.47,0.03280433]
[1737984449213,25.5365544,233.68,233.48,25.5365544]
[1737984449420,25.5365544,233.72,233.52,25.5365544]
[1737984449620,25.5365544,233.72,233.56,0.03247499]
[1737984450021,25.5365544,233.64,233.48,2.58]
[1737984450217,4.283,233.52,233.43,2.58]
[1737984450421,25.5365544,233.64,233.43,2.58]
[1737984450722,4.2818,233.58,233.43,2.58]
[1737984450924,25.5365544,233.68,233.47,25.5365544]
[1737984451323,4.2811,233.62,233.48,2.58]
[1737984451526,25.5365544,233.68,233.55,0.02860111]
[1737984451724,0.03221481,233.6,233.55,0.02860111]
[1737984451925,4.282,233.57,233.55,0.02860111]
[1737984453226,25.5365544,233.56,233.4,2.58]
[1737984453722,25.5365544,233.52,233.33,2.58]
[1737984453929,25.5365544,233.48,233.28,25.5365544]
[1737984454143,25.5365544,233.52,233.28,25.5365544]
[1737984454427,0.03193386,233.4,233.36,0.03104269]
[1737984454828,25.5365544,233.52,233.32,28.1165544]
[1737984455028,25.5365544,233.52,233.32,2.58]
[1737984455324,0.03142413,233.4,233.36,0.03289853]
[1737984455530,4.31652413,233.4,233.36,0.03289853]
[1737984455730,25.5365544,233.52,233.32,2.58]
[1737984456025,25.5365544,233.6,233.4,25.5365544]
[1737984456429,4.2825,233.55,233.41,2.58]
[1737984456630,4.06,233.63,233.45,25.5365544]
[1737984457130,4.06,233.63,233.46,2.58]
[1737984457331,0.03041974,233.56,233.52,0.02720527]
[1737984457532,4.2827,233.53,233.52,0.02720527]
[1737984457733,0.03041974,233.56,233.46,2.58]
[1737984458032,4.2836,233.48,233.46,2.58]
[1737984458221,0.03041974,233.56,233.46,2.58]
[1737984458427,25.5365544,233.69,233.49,25.5365544]
[1737984458731,31.9562544,233.73,233.49,25.5365544]
[1737984458931,0.02750288,233.61,233.57,0.03176542]
[1737984459331,25.5365544,233.69,233.53,2.58]
[1737984459534,0.03122076,233.61,233.57,0.03232378]
[1737984461028,4.2815,233.6,233.57,0.03232378]
[1737984461224,0.03122076,233.61,233.57,0.03232378]
[1737984461631,4.2817,233.59,233.57,0.03232378]
[1737984461927,0.03122076,233.61,233.57,0.03232378]
[1737984462123,0.03122076,233.61,233.58,2.58]
[1737984462329,25.5365544,233.81,233.6,25.5365544]
[1737984462730,6.3467,233.85,233.64,25.5365544]
[1737984463132,4.2779,233.79,233.65,2.58]
[1737984463432,0.02756685,233.77,233.72,0.02804773]
[1737984464830,0.02756685,233.77,233.72,4.30714773]
[1737984465030,4.04,233.95,233.73,25.5365544]
[1737984465031,25.5365544,233.95,233.73,25.5365544]
[1737984465231,25.5365544,233.95,233.77,25.5365544]
[1737984465735,25.5365544,233.95,233.77,28.1165544]
[1737984466238,25.5365544,233.95,233.84,0.02890248]
[1737984466933,4.2768,233.86,233.84,0.02890248]
[1737984467129,25.5365544,233.86,233.71,2.58]
[1737984467337,25.5365544,233.86,233.65,8.2626]
[1737984467736,25.5365544,233.82,233.65,2.58]
[1737984468041,4.2793,233.72,233.65,2.58]
[1737984468336,25.5365544,233.86,233.71,0.02841295]
[1737984468337,0.02852225,233.76,233.71,0.02841295]
[1737984468729,25.5365544,233.9,233.71,2.58]
[1737984469239,0.02890248,233.76,233.71,2.6084871]
[1737984469438,25.5365544,233.95,233.72,25.5365544]
[1737984470233,4.2768,233.86,233.76,25.5365544]
[1737984470429,25.5365544,233.95,233.76,25.5365544]
[1737984470632,25.5365544,233.95,233.77,2.58]
[1737984470834,4.2767,233.86,233.77,2.58]
[1737984471043,4.2767,233.86,233.78,2.58]
[1737984471337,4.2767,233.86,233.84,0.03174049]
[1737984471733,25.5365544,233.95,233.72,29.3444544]
[1737984471935,25.5365544,233.89,233.73,2.58]
[1737984472429,4.277,233.85,233.73,2.58]
[1737984472630,25.5365544,233.95,233.73,2.58]
[1737984473039,0.03184796,233.86,233.82,0.03135273]
[1737984473441,25.5365544,233.95,233.82,0.03135273]
[1737984473741,4.2771,233.84,233.82,0.03135273]
[1737984474939,4.2772,233.83,233.82,0.03135273]
[1737984475340,0.03199297,233.85,233.73,2.58]
[1737984475539,0.03199297,233.85,233.72,3.8079]
[1737984475540,25.5365544,233.83,233.68,2.58]
[1737984476545,25.5365544,233.87,233.68,2.58]
[1737984476734,0.03041067,233.78,233.73,0.03160509]
[1737984478341,4.2784,233.77,233.73,0.03160509]
[1737984478544,0.03041067,233.78,233.73,0.03160509]
[1737984479438,0.03041067,233.78,233.74,2.58]
[1737984479747,25.5365544,233.95,233.76,25.5365544]
[1737984480245,25.5365544,234.0,233.8,25.5365544]
[1737984480440,25.5365544,234.0,233.76,25.5365544]
[1737984480641,4.2773,233.83,233.74,9.6724]
[1737984480843,0.02865324,233.9,233.86,0.03166216]
[1737984481141,25.5365544,233.88,233.74,2.58]
[1737984481447,25.5365544,233.84,233.69,8.8343]
[1737984482245,0.03149503,233.79,233.74,0.03225279]
[1737984482645,0.03149503,233.79,233.64,2.58]
[1737984483143,2.8528,233.83,233.61,2.8136]
[1737984483144,25.5365544,233.76,233.61,2.8136]
[1737984483345,25.5365544,233.76,233.59,2.58]
[1737984483543,4.2808,233.64,233.59,2.58]
[1737984483945,4.2813,233.61,233.59,2.58]
[1737984484144,25.5365544,233.72,233.59,2.61097821]
[1737984484345,0.02881329,233.62,233.59,2.61097821]
[1737984484855,0.03033793,233.63,233.59,2.61097821]
[1737984485147,25.5365544,233.64,233.59,0.03097821]
[1737984485346,25.5365544,233.6,233.48,2.58]
[1737984485550,4.2832,233.51,233.38,4.2853]
[1737984485747,25.5365544,233.6,233.4,25.5365544]
[1737984486055,4.2826,233.54,233.42,4.2846]
[1737984486353,25.5365544,233.6,233.41,2.58]
[1737984486749,0.02923336,233.5,233.46,0.02881464]
[1737984487254,4.285,233.41,233.36,2.58]
[1737984487449,25.5365544,233.52,233.36,2.58]
[1737984487450,0.02965714,233.5,233.36,2.58]
[1737984487650,0.02965714,233.5,233.36,2.61204205]
[1737984487854,7.4491,233.71,233.47,25.5365544]
[1737984488048,25.5365544,233.62,233.42,25.5365544]
[1737984488252,0.03196046,233.61,233.42,25.5365544]
[1737984488448,0.03196046,233.61,233.5,0.0328948]
[1737984488646,25.5365544,233.7,233.5,0.0328948]
[1737984488845,0.03048309,233.58,233.5,2.6128948]
[1737984489057,0.03048309,233.58,233.5,2.58]
[1737984489254,0.03048309,233.58,233.52,0.03245468]
[1737984489655,0.03048309,233.58,233.54,25.5365544]
[1737984489856,2.6532,233.72,233.54,25.5365544]
[1737984490051,4.2805,233.65,233.55,2.58]
[1737984490355,2.6532,233.72,233.55,2.58]
[1737984490547,4.2801,233.67,233.55,2.58]
[1737984490855,2.6532,233.72,233.55,2.58]
[1737984491055,0.03094779,233.63,233.59,0.03168171]
[1737984491455,25.5365544,233.62,233.5,2.58]
[1737984491750,25.5365544,233.62,233.45,2.58]
[1737984491955,25.5365544,233.62,233.38,25.5365544]
[1737984492155,4.2824,233.55,233.38,25.5365544]
[1737984492358,25.5365544,233.58,233.38,25.5365544]
[1737984492555,25.5365544,233.62,233.38,25.5365544]
[1737984492758,0.02872113,233.49,233.44,0.02893602]
[1737984493057,25.5365544,233.51,233.39,0.85693474]
[1737984493251,25.5365544,233.51,233.44,0.03293776]
[1737984493452,0.02873745,233.49,233.44,0.03293776]
[1737984496253,0.02873745,233.49,233.45,4.2841]
[1737984496454,0.02873745,233.49,233.44,0.03293776]
[1737984496657,2.8005,233.66,233.45,25.5365544]
[1737984496857,28.3370544,233.66,233.45,25.5365544]
[1737984497062,25.5365544,233.62,233.46,2.58]
[1737984497261,4.2829,233.52,233.46,2.58]
[1737984497663,25.5365544,233.62,233.46,2.58]
[1737984497855,2.8005,233.66,233.47,0.03199807]
[1737984498163,2.8005,233.66,233.46,28.1165544]
[1737984499064,0.03000967,233.58,233.54,0.0296075]
[1737984499562,4.31190967,233.58,233.54,0.0296075]
[1737984500067,0.03000967,233.58,233.54,0.0296075]
[1737984501265,4.2823,233.55,233.54,0.0296075]
[1737984503364,4.2823,233.55,233.43,7.9781]
[1737984503365,4.2843,233.44,233.43,2.58]
[1737984503563,25.5365544,233.55,233.43,2.58]
[1737984504665,4.31342393,233.51,233.47,0.03142342]
[1737984504864,25.5365544,233.59,233.43,2.58]
[1737984505059,0.03068797,233.51,233.47,0.03140111]
[1737984505459,3.4085,233.63,233.47,0.03140111]
[1737984505460,3.4085,233.63,233.47,0.02953667]
[1737984505662,0.02699673,233.51,233.43,2.58]
[1737984505858,4.2819,233.58,233.53,0.0299099]
[1737984506056,28.9450544,233.63,233.43,2.58]
[1737984506260,0.02719622,233.58,233.53,0.03013918]
[1737984506556,4.2823,233.55,233.53,0.03013918]
[1737984506762,0.02719622,233.58,233.53,0.03013918]
[1737984507157,0.02719622,233.58,233.48,2.58]
[1737984507355,25.5365544,233.52,233.3,25.5365544]
[1737984507666,25.5365544,233.53,233.29,28.8937244]
[1737984507857,25.5365544,233.58,233.35,25.5365544]
[1737984508061,25.5365544,233.58,233.36,2.7245]
[1737984508365,0.03040733,233.49,233.45,0.02745815]
[1737984508668,25.5365544,233.58,233.45,0.02745815]
[1737984508964,4.2838,233.47,233.45,0.02745815]
[1737984509361,0.02929541,233.48,233.45,0.02745815]
[1737984509556,25.5365544,233.64,233.38,4.2853]
[1737984509762,0.03176981,233.49,233.44,0.03052576]
[1737984510062,25.5365544,233.64,233.36,8.9861]
[1737984510256,0.03145337,233.49,233.44,0.03238474]
[1737984510664,25.5365544,233.48,233.27,25.5365544]
[1737984510963,25.5365544,233.48,233.3,6.0669]
[1737984511163,25.5365544,233.44,233.3,6.0669]
[1737984511664,25.5365544,233.44,233.28,2.6387]
[1737984511665,25.5365544,233.4,233.28,2.6387]
[1737984511866,0.02934348,233.39,233.35,0.02858951]
[1737984512163,4.2868,233.31,233.22,4.2883]
[1737984512558,25.5365544,233.41,233.28,0.03027104]
[1737984512760,0.02870211,233.32,233.28,0.03027104]
[1737984512961,3.86,233.5,233.28,0.03027104]
[1737984513161,0.02722202,233.33,233.21,6.0669]
[1737984513361,25.5365544,233.41,233.21,6.0669]
[1737984513561,25.5365544,233.45,233.37,0.02993901]
[1737984513962,0.0320305,233.42,233.37,0.02993901]
[1737984514468,4.2853,233.39,233.37,0.02993901]
[1737984514866,0.0320305,233.42,233.37,0.02993901]
[1737984515362,25.5365544,233.41,233.37,3.901e-05]
[1737984515567,4.2853,233.39,233.37,3.901e-05]
[1737984515959,0.0320305,233.42,233.37,3.901e-05]
[1737984516366,4.285,233.41,233.37,3.901e-05]
[1737984516665,0.0320305,233.42,233.37,3.901e-05]
[1737984517667,4.2854,233.38,233.37,3.901e-05]
[1737984518460,25.5365544,233.41,233.16,2.773]
[1737984518667,25.5365544,233.29,233.1,6.5546]
[1737984519266,25.5365544,233.25,233.1,6.5546]
[1737984519459,25.5365544,233.31,233.1,6.5546]
[1737984519659,0.02947804,233.2,233.15,0.03006887]
[1737984520165,25.5365544,233.31,233.11,25.5365544]
[1737984520366,0.02838117,233.2,233.15,0.0321597]
[1737984520566,4.2873,233.29,233.11,25.5365544]
[1737984520760,25.5365544,233.31,233.11,25.5365544]
[1737984521166,4.2876,233.27,233.15,4.2896]
[1737984521465,25.5365544,233.31,233.11,25.5365544]
[1737984521665,4.2867,233.32,233.21,4.2885]
[1737984521866,3.84,233.4,233.19,0.02865212]
[1737984522066,25.5365544,233.38,233.15,25.5365544]
[1737984522368,4.2868,233.31,233.21,4.2885]
[1737984522566,25.5365544,233.38,233.15,25.5365544]
[1737984522969,4.2864,233.34,233.15,25.5365544]
[1737984523169,0.02855505,233.29,233.24,0.03053868]
[1737984523465,0.02855505,233.29,233.19,4.2889]
[1737984523663,25.5365544,233.38,233.24,0.02788619]
[1737984523869,25.5365544,233.42,233.24,0.02788619]
[1737984524170,25.5365544,233.42,233.19,25.5365544]
[1737984524171,0.0306055,233.33,233.29,0.02928278]
[1737984524367,2.6227,233.49,233.29,0.02928278]
[1737984524572,2.6227,233.49,233.28,25.5365544]
[1737984524861,2.6227,233.49,233.31,4.2867]
[1737984525565,2.6227,233.49,233.28,25.5365544]
[1737984525868,0.03143822,233.42,233.38,0.02744286]
[1737984526262,4.2852,233.4,233.38,0.02744286]
[1737984527065,4.2853,233.39,233.38,0.02744286]
[1737984528070,25.56799262,233.42,233.25,2.7686]
[1737984528262,25.5365544,233.38,233.24,6.173]
[1737984528466,4.2854,233.39,233.24,6.173]
[1737984528666,25.5365544,233.42,233.24,6.173]
[1737984529168,0.02735411,233.35,233.31,0.02836284]
[1737984529669,25.5365544,233.34,232.98,25.5365544]
[1737984529866,25.5365544,233.29,233.1,2.6878]
[1737984530569,25.5365544,233.33,233.1,2.6878]
[1737984530768,25.5365544,233.33,233.13,25.5365544]
[1737984530973,0.03208498,233.24,233.23,4.2882]
[1737984531161,3.78,233.41,233.21,25.5365544]
[1737984531564,3.78,233.41,233.22,3.5928]
[1737984531769,25.5365544,233.42,233.22,6.4571]
[1737984532570,3.76,233.51,233.22,6.4571]
[1737984532571,0.02901053,233.34,233.3,0.03228205]
[1737984532771,25.5365544,233.46,233.26,25.5365544]
[1737984532971,0.02895224,233.34,233.3,0.03177832]
[1737984533164,25.5365544,233.46,233.26,25.5365544]
[1737984533370,0.03052983,233.32,233.3,0.03227191]
[1737984533672,4.2855,233.38,233.28,4.2873]
[1737984533873,0.03256897,233.33,233.29,0.03260799]
[1737984535373,25.56912337,233.33,233.29,0.03260799]
[1737984535774,4.2877,233.26,233.16,4.2893]
[1737984535978,25.5365544,233.33,233.13,6.1222]
[1737984536477,25.5365544,233.33,233.14,2.7853]
[1737984536677,25.5365544,233.37,233.16,25.5365544]
[1737984536877,0.02966796,233.26,233.21,0.02893939]
[1737984537173,25.5365544,233.42,233.16,25.5365544]
[1737984537371,0.02727884,233.26,233.2,25.5365544]
[1737984537577,0.03261834,233.3,233.26,0.02928914]
[1737984537776,4.2862,233.35,233.25,4.2877]
[1737984538077,0.03074648,233.3,233.26,0.03289978]
[1737984538280,4.2871,233.29,233.18,4.2891]
[1737984538576,0.03247922,233.3,233.26,0.03061611]
[1737984538772,4.2867,233.32,233.22,4.2884]
[1737984538980,0.02709187,233.3,233.26,0.02956974]
[1737984539179,25.5365544,233.42,233.16,25.5365544]
[1737984539380,0.03226247,233.3,233.26,0.03141265]
[1737984539580,25.5365544,233.36,233.16,25.5365544]
[1737984539781,0.03248885,233.3,233.26,0.02803749]
[1737984541583,25.5365544,233.27,233.13,3.5002]
[1737984541882,25.5365544,233.23,233.03,5.6388]
[1737984542086,4.2898,233.15,233.03,9.9307]
[1737984542383,25.5365544,233.23,233.03,5.6388]
[1737984542884,0.03042789,233.15,233.11,0.0322734]
[1737984543284,25.5365544,233.15,232.99,3.4292]
[1737984543485,25.56583938,233.15,233.11,0.02896866]
[1737984543686,25.5365544,233.15,232.98,2.7506]
[1737984544083,25.56431985,233.15,233.11,0.02918338]
[1737984544281,25.5365544,233.15,232.98,2.7506]
[1737984544484,25.5365544,233.1,232.98,2.7506]
[1737984544782,25.5365544,233.2,232.98,2.7506]
[1737984544983,4.2908,233.09,232.98,2.7506]
[1737984545182,25.5365544,233.11,232.98,2.7506]
[1737984545583,0.03004282,233.06,233.01,0.02805167]
[1737984546583,25.5365544,233.2,233.03,4.2917]
[1737984546788,25.5365544,233.2,233.01,6.08825167]
[1737984546990,25.5365544,233.2,233.02,2.6798]
[1737984547789,0.02768066,233.13,233.09,0.032869]
[1737984549891,4.2905,233.11,233.09,0.032869]
[1737984551694,4.2903,233.12,233.09,0.032869]
[1737984551890,0.02768066,233.13,233.09,0.032869]
[1737984554495,4.31778066,233.13,233.09,0.032869]
[1737984554689,0.02768066,233.13,233.09,0.032869]
[1737984555192,25.5365544,233.11,232.92,25.5365544]
[1737984555388,25.5365544,233.11,232.93,2.7607]
[1737984555588,25.5365544,233.15,232.93,2.7607]
[1737984556192,25.5365544,233.15,232.93,7.0543]
[1737984556392,0.03238379,233.06,233.02,0.02928119]
[1737984556892,4.2926,232.99,232.93,2.7607]
[1737984557193,25.5365544,233.11,232.93,2.7607]
[1737984557394,25.5365544,233.16,232.94,0.02974227]
[1737984557595,0.0297414,233.04,232.96,25.5365544]
[1737984557793,0.0297414,233.04,233.03,0.02713256]
[1737984558094,0.0297414,233.04,232.98,4.2928]
[1737984558293,0.0297414,233.04,233.01,0.02913596]
[1737984558696,0.0297414,233.04,233.02,4.2921]
[1737984558895,25.5365544,233.24,233.01,0.02913596]
[1737984559094,25.5365544,233.24,233.01,2.71723596]
[1737984559291,25.5365544,233.24,233.04,25.5365544]
[1737984559790,25.5365544,233.2,233.01,2.6881]
[1737984560095,0.03228242,233.16,233.12,0.03128767]
[1737984561289,25.56883682,233.16,233.12,0.03128767]
[1737984561489,25.56883682,233.16,232.96,4.2931]
[1737984561689,25.5365544,233.12,232.94,25.5365544]
[1737984562791,4.31980541,233.07,233.02,0.0287106]
[1737984562987,25.5365544,233.2,232.98,25.5365544]
[1737984563192,0.0283949,233.07,233.02,25.5662527]
[1737984563393,25.5365544,233.2,233.02,25.5365544]
[1737984563691,0.03159033,233.13,233.02,25.56889946]
[1737984563897,0.03159033,233.13,233.05,0.0301023]
[1737984564597,25.5365544,233.08,232.88,2.7183]
[1737984564897,25.5365544,233.08,232.88,6.015]
[1737984565196,25.5365544,233.03,232.88,3.2967]
[1737984565396,25.5365544,232.99,232.84,2.6998]
[1737984565593,4.2946,232.89,232.84,2.6998]
[1737984565792,0.02962116,232.94,232.89,0.02753226]
[1737984566190,2.6844,232.98,232.78,5.4829]
[1737984566394,0.03301901,232.94,232.89,0.02915056]
[1737984566797,4.32671901,232.94,232.89,0.02915056]
[1737984566998,0.03301901,232.94,232.89,0.02915056]
[1737984568898,3.5047,233.07,232.9,25.5365544]
[1737984569197,3.5047,233.07,232.85,25.5365544]
[1737984569701,4.2925,233.0,232.88,4.2946]
[1737984570202,0.03200604,232.96,232.92,0.02737006]
[1737984571100,25.5365544,233.12,232.92,0.02737006]
[1737984571502,4.2912,233.07,232.96,4.2932]
[1737984571700,2.8223,233.14,232.93,25.5365544]
[1737984571902,25.5365544,233.16,232.97,25.5365544]
[1737984572105,25.5365544,233.16,232.93,25.5365544]
[1737984572404,0.02836923,233.09,233.04,0.03243937]
[1737984572598,4.2914,233.06,233.04,0.03243937]
[1737984573704,0.02836923,233.09,233.04,0.03243937]
[1737984574905,4.2915,233.05,233.04,0.03243937]
[1737984576907,0.02836923,233.09,233.04,0.03243937]
[1737984577404,4.2915,233.05,233.04,0.03243937]
[1737984577706,0.02836923,233.09,233.04,0.03243937]
[1737984577903,4.2915,233.06,233.04,0.03243937]
[1737984578304,0.02836923,233.09,233.04,0.03243937]
[1737984579004,4.2915,233.05,233.04,0.03243937]
[1737984579405,0.02836923,233.09,233.04,0.03243937]
[1737984580306,4.2915,233.05,233.04,0.03243937]
[1737984581306,0.02836923,233.09,233.04,0.03243937]
[1737984581807,4.2915,233.05,233.04,0.03243937]